[Event "FIDE WCCC Open-12 2024"]
[Site "Montesilvano"]
[Date "2024.11.18"]
[Round "3.24"]
[White "Konstantinides, Savvas"]
[Black "Kuandykuly, Danis"]
[Result "1/2-1/2"]
[ECO "B33"]
[WhiteElo "1839"]
[BlackElo "2199"]
[PlyCount "112"]
[EventDate "2024.11.18"]
[EventType "swiss"]
[EventCountry "ITA"]
[TimeControl "5400+30"]

1. e4 {[%emt 0:00:05]} c5 {[%emt 0:00:18]} 2. Nf3 {[%emt 0:00:16]} Nc6 {[%emt 0:00:17]} 3. d4 {[%emt 0:00:23]} cxd4 {[%emt 0:00:06]} 4. Nxd4 {[%emt 0:00:05]} Nf6 {[%emt 0:00:04]} 5. Nc3 {[%emt 0:00:09]} e5 {[%emt 0:00:06]} 6. Ndb5 {[%emt 0:00:52]} d6 {[%emt 0:00:16]} 7. Bg5 {[%emt 0:00:06]} a6 {[%emt 0:00:05]} 8. Na3 {[%emt 0:00:04]} b5 {[%emt 0:00:04]} 9. Nd5 {[%emt 0:00:36]} Be7 {[%emt 0:00:05]} 10. Bxf6 {[%emt 0:02:26]} Bxf6 {[%emt 1:34:09]} 11. c4 {[%emt 0:00:42]} b4 {[%emt 0:00:00]} 12. Nc2 {[%emt 0:00:23]} O-O {[%emt 0:00:00]} 13. g3 {[%emt 0:02:53]} a5 {[%emt 0:00:00]} 14. h4 {[%emt 0:00:58]} g6 {[%emt 0:00:00]} 15. Bh3 {[%emt 0:05:47]} Bb7 {[%emt 0:00:00]} 16. Kf1 {[%emt 0:06:25]} Bg7 {[%emt 0:00:00]} 17. Kg2 {[%emt 0:12:05]} f5 {[%emt 0:00:00]} 18. h5 {[%emt 0:00:55]} Ne7 {[%emt 0:00:00]} 19. hxg6 {[%emt 0:00:24]} hxg6 {[%emt 0:00:00]} 20. Nce3 {[%emt 0:02:25]} Rc8 {[%emt 0:00:00]} 21. b3 {[%emt 0:05:54]} Nxd5 {[%emt 0:00:00]} 22. cxd5 {[%emt 0:02:16]} Rc5 {[%emt 0:00:00]} 23. exf5 {[%emt 0:02:56]} Qf6 {[%emt 0:00:00]} 24. Rc1 {[%emt 0:53:25]} Rc3 {[%emt 0:00:00]} 25. Rxc3 {[%emt 0:00:00]} bxc3 {[%emt 0:00:00]} 26. Qc2 {[%emt 0:00:00]} Bc8 {[%emt 0:00:00]} 27. Qxc3 {[%emt 0:00:00]} gxf5 {[%emt 0:00:00]} 28. Rc1 {[%emt 0:00:00]} Bh6 {[%emt 0:00:00]} 29. Qxa5 {[%emt 0:00:00]} Kh8 {[%emt 0:04:03]} 30. Qb5 {[%emt 0:00:00]} Rg8 {[%emt 0:03:30]} 31. Rxc8 {[%emt 0:00:00]} Rxc8 {[%emt 0:00:07]} 32. Nxf5 {[%emt 0:00:00]} Rd8 {[%emt 0:02:35]} 33. Qb6 {[%emt 0:00:00]} Bg5 {[%emt 0:00:07]} 34. a4 {[%emt 0:00:00]} e4 {[%emt 0:00:59]} 35. Qd4 {[%emt 0:00:00]} Qxd4 {[%emt 0:00:38]} 36. Nxd4 {[%emt 0:00:00]} e3 {[%emt 0:00:26]} 37. fxe3 {[%emt 0:00:00]} Bxe3 {[%emt 0:00:04]} 38. Nc6 {[%emt 0:00:00]} Rf8 {[%emt 0:00:19]} 39. Be6 {[%emt 0:00:00]} Rf2+ {[%emt 0:00:29]} 40. Kh3 {[%emt 0:00:00]} Ra2 {[%emt 0:00:32]} 41. a5 {[%emt 0:00:00]} Bd2 {[%emt 0:00:13]} 42. b4 {[%emt 0:00:00]} Ra4 {[%emt 0:00:05]} 43. b5 {[%emt 0:00:00]} Bxa5 {[%emt 0:00:04]} 44. Nxa5 {[%emt 0:00:00]} Rxa5 {[%emt 0:00:01]} 45. Bd7 {[%emt 0:00:00]} Ra4 {[%emt 0:00:29]} 46. g4 {[%emt 0:00:00]} Kg7 {[%emt 0:00:06]} 47. Kg3 {[%emt 0:00:00]} Rb4 {[%emt 0:01:22]} 48. Kf3 {[%emt 0:00:00]} Kf6 {[%emt 0:00:08]} 49. Bc6 {[%emt 0:00:00]} Kg5 {[%emt 0:00:11]} 50. Bd7 {[%emt 0:00:00]} Rd4 {[%emt 0:02:15]} 51. Bc6 {[%emt 0:02:39]} Rxg4 {[%emt 0:00:15]} 52. b6 {[%emt 0:00:06]} Rb4 {[%emt 0:00:06]} 53. b7 {[%emt 0:00:04]} Kf6 {[%emt 0:00:28]} 54. Ke3 {[%emt 0:00:03]} Ke5 {[%emt 0:00:26]} 55. Kd3 {[%emt 0:00:06]} Rb3+ {[%emt 0:00:15]} 56. Kc4 {[%emt 0:00:08]} Rb6 {[%emt 0:00:05]} 1/2-1/2

[Event "FIDE WCCC Open-12 2024"]
[Site "Montesilvano"]
[Date "2024.11.18"]
[Round "3.25"]
[White "Diachek, Andrii"]
[Black "Kozhedub, Ivan"]
[Result "1-0"]
[ECO "B34"]
[WhiteElo "2162"]
[BlackElo "1826"]
[PlyCount "127"]
[EventDate "2024.11.18"]
[EventType "swiss"]
[EventCountry "ITA"]
[TimeControl "5400+30"]

1. e4 {[%emt 0:00:03]} c5 {[%emt 0:00:07]} 2. Nf3 {[%emt 0:00:05]} g6 {[%emt 0:00:06]} 3. d4 {[%emt 0:00:05]} cxd4 {[%emt 0:00:04]} 4. Nxd4 {[%emt 0:00:04]} Nf6 {[%emt 0:00:04]} 5. Nc3 {[%emt 0:00:05]} Nc6 {[%emt 0:00:09]} 6. Nxc6 {[%emt 0:00:40]} dxc6 {[%emt 0:00:06]} 7. Qxd8+ {[%emt 0:00:25]} Kxd8 {[%emt 0:00:03]} 8. Bc4 {[%emt 0:00:36]} Ke8 {[%emt 0:00:04]} 9. e5 {[%emt 0:01:26]} Nd7 {[%emt 0:00:05]} 10. e6 {[%emt 0:00:53]} fxe6 {[%emt 0:00:07]} 11. Bxe6 {[%emt 0:00:15]} Bg7 {[%emt 0:00:05]} 12. Be3 {[%emt 0:01:10]} Ne5 {[%emt 0:05:25]} 13. Bb3 {[%emt 0:04:19]} Ng4 {[%emt 0:06:01]} 14. Bd2 {[%emt 0:03:18]} Bd4 {[%emt 0:08:00]} 15. Nd1 {[%emt 0:04:23]} Bf5 {[%emt 0:04:03]} 16. f3 {[%emt 0:05:41]} Ne5 {[%emt 0:01:25]} 17. Nc3 {[%emt 0:09:17]} Nf7 {[%emt 0:26:33]} 18. O-O-O {[%emt 0:02:52]} Rd8 {[%emt 0:03:23]} 19. Rhe1 {[%emt 0:03:22]} Kf8 {[%emt 0:01:56]} 20. Ne2 {[%emt 0:09:16]} Bf6 {[%emt 0:08:31]} 21. Bh6+ {[%emt 0:04:40]} Ke8 {[%emt 0:03:24]} 22. Be3 {[%emt 0:00:54]} b6 {[%emt 0:05:07]} 23. Bd4 {[%emt 0:18:33]} e5 {[%emt 0:05:10]} 24. Bc3 {[%emt 0:05:13]} Rxd1+ {[%emt 0:01:05]} 25. Rxd1 {[%emt 0:00:42]} Ke7 {[%emt 0:02:07]} 26. Ng3 {[%emt 0:01:39]} Re8 {[%emt 0:04:36]} 27. Re1 {[%emt 0:03:02]} Be6 {[%emt 0:02:59]} 28. Ne4 {[%emt 0:06:02]} Bxb3 {[%emt 0:01:38]} 29. axb3 {[%emt 0:00:04]} Bg7 {[%emt 0:01:43]} 30. Kd2 {[%emt 0:02:26]} Rd8+ {[%emt 0:02:44]} 31. Ke2 {[%emt 0:00:33]} Rd7 {[%emt 0:04:42]} 32. b4 {[%emt 0:00:53]} Nd8 {[%emt 0:00:59]} 33. Nf2 {[%emt 0:02:06]} Ne6 {[%emt 0:01:42]} 34. Kf1 {[%emt 0:01:42]} Nd4 {[%emt 0:02:32]} 35. Bxd4 {[%emt 0:01:13]} Rxd4 {[%emt 0:00:27]} 36. Nd3 {[%emt 0:00:21]} Kd8 {[%emt 0:00:33]} 37. Kf2 {[%emt 0:03:03]} Bf6 {[%emt 0:00:41]} 38. Ra1 {[%emt 0:02:56]} Rd7 {[%emt 0:00:22]} 39. Ke3 {[%emt 0:00:18]} Kc8 {[%emt 0:00:32]} 40. c3 {[%emt 0:00:36]} Kb7 {[%emt 0:00:37]} 41. Ke4 {[%emt 0:00:56]} Rd5 {[%emt 0:00:15]} 42. g3 {[%emt 0:02:57]} Bg7 {[%emt 0:00:15]} 43. Rd1 {[%emt 0:01:23]} Kc7 {[%emt 0:00:51]} 44. Ra1 {[%emt 0:00:07]} Kb7 {[%emt 0:00:04]} 45. h4 {[%emt 0:01:18]} h6 {[%emt 0:01:01]} 46. h5 {[%emt 0:00:35]} g5 {[%emt 0:00:13]} 47. Rd1 {[%emt 0:00:29]} Kc7 {[%emt 0:00:42]} 48. Nf2 {[%emt 0:00:20]} Rb5 {[%emt 0:00:29]} 49. Rd2 {[%emt 0:01:02]} a5 {[%emt 0:00:38]} 50. bxa5 {[%emt 0:00:05]} Rxa5 {[%emt 0:00:31]} 51. Ng4 {[%emt 0:00:18]} Ra1 {[%emt 0:00:23]} 52. Kf5 {[%emt 0:00:53]} Rg1 {[%emt 0:00:37]} 53. Kg6 {[%emt 0:00:37]} Bf8 {[%emt 0:00:04]} 54. Nxe5 {[%emt 0:00:42]} Bd6 {[%emt 0:00:52]} 55. Nf7 {[%emt 0:00:24]} Bxg3 {[%emt 0:00:25]} 56. Nxh6 {[%emt 0:00:28]} Bd6 {[%emt 0:00:41]} 57. Ng4 {[%emt 0:00:36]} Rg3 {[%emt 0:00:30]} 58. Rd3 {[%emt 0:00:31]} c5 {[%emt 0:00:28]} 59. c4 {[%emt 0:00:09]} Bf4 {[%emt 0:00:31]} 60. h6 {[%emt 0:00:21]} Bc1 {[%emt 0:00:05]} 61. Rb3 {[%emt 0:00:41]} Rg2 {[%emt 0:00:57]} 62. h7 {[%emt 0:00:11]} Rxb2 {[%emt 0:00:02]} 63. Rxb2 {[%emt 0:00:12]} Bxb2 {[%emt 0:00:04]} 64. Nf6 {[%emt 0:00:02]} 1-0

[Event "FIDE WCCC Open-12 2024"]
[Site "Montesilvano"]
[Date "2024.11.18"]
[Round "3.26"]
[White "Le, Anh Tu"]
[Black "Guo, Ethan"]
[Result "1-0"]
[ECO "B94"]
[WhiteElo "1812"]
[BlackElo "2157"]
[PlyCount "113"]
[EventDate "2024.11.18"]
[EventType "swiss"]
[EventCountry "ITA"]
[TimeControl "5400+30"]

1. e4 {[%emt 0:00:06]} c5 {[%emt 0:00:01]} 2. Nf3 {[%emt 0:00:09]} d6 {[%emt 0:00:04]} 3. d4 {[%emt 0:00:05]} cxd4 {[%emt 0:00:02]} 4. Nxd4 {[%emt 0:00:07]} Nf6 {[%emt 0:00:04]} 5. Nc3 {[%emt 0:00:05]} a6 {[%emt 0:00:02]} 6. Bg5 {[%emt 0:00:10]} Nbd7 {[%emt 0:00:04]} 7. Bc4 {[%emt 0:01:25]} Qb6 {[%emt 0:00:02]} 8. O-O {[%emt 0:00:42]} Qb5 {[%emt 1:34:11]} 9. b4 Qxb4 {[%emt 0:00:00]} 10. Nd5 {[%emt 0:01:02]} Qb2 {[%emt 0:00:00]} 11. Rb1 Nxd5 {[%emt 0:00:00]} 12. Bxd5 {[%emt 0:00:17]} Qc3 {[%emt 0:00:00]} 13. Re1 {[%emt 0:06:31]} Nc5 {[%emt 0:00:00]} 14. Nc6 {[%emt 0:04:40]} e6 {[%emt 0:00:00]} 15. Rb3 {[%emt 0:04:42]} Na4 {[%emt 0:00:00]} 16. Rxc3 {[%emt 0:01:46]} h6 {[%emt 0:00:00]} 17. Qd3 Nxc3 18. Qd4 {[%emt 0:01:34]} Nxd5 {[%emt 0:00:00]} 19. exd5 {[%emt 0:00:19]} bxc6 {[%emt 0:00:00]} 20. Qb6 {[%emt 0:00:20]} hxg5 {[%emt 0:00:00]} 21. Qxc6+ {[%emt 0:00:02]} Bd7 {[%emt 0:00:00]} 22. Qxa8+ {[%emt 0:00:14]} Ke7 {[%emt 0:00:00]} 23. dxe6 {[%emt 0:00:06]} fxe6 {[%emt 0:00:00]} 24. Qxa6 {[%emt 0:00:28]} Rh4 {[%emt 0:00:00]} 25. Qd3 {[%emt 0:00:36]} Ra4 {[%emt 0:00:00]} 26. Qb3 {[%emt 0:02:59]} Ra5 {[%emt 0:00:00]} 27. a4 {[%emt 0:00:05]} g6 {[%emt 0:00:00]} 28. Qd3 {[%emt 0:01:37]} Kf7 {[%emt 0:00:00]} 29. Qc3 {[%emt 0:06:27]} Rxa4 {[%emt 0:00:00]} 30. Qc7 {[%emt 0:00:09]} Ke7 {[%emt 0:00:00]} 31. Rb1 {[%emt 0:00:28]} Bg7 {[%emt 0:00:00]} 32. g3 {[%emt 0:00:59]} Ra8 {[%emt 0:00:00]} 33. Rb7 {[%emt 0:00:17]} Rd8 {[%emt 0:00:00]} 34. c4 {[%emt 0:02:15]} Bd4 {[%emt 0:00:00]} 35. Kg2 {[%emt 0:06:39]} e5 {[%emt 0:00:00]} 36. Qc6 {[%emt 0:02:51]} Bc5 {[%emt 0:00:00]} 37. Rc7 {[%emt 0:00:47]} Bd4 {[%emt 0:00:00]} 38. Qd5 {[%emt 0:01:29]} Rf8 {[%emt 0:00:00]} 39. f3 {[%emt 0:00:07]} Rb8 {[%emt 0:00:00]} 40. Qc6 {[%emt 0:01:43]} Rd8 {[%emt 0:00:00]} 41. Kf1 {[%emt 0:01:10]} Ke6 {[%emt 0:00:00]} 42. Qd5+ {[%emt 0:01:38]} Ke7 {[%emt 0:00:00]} 43. Ke2 {[%emt 0:00:07]} Bb6 {[%emt 0:00:00]} 44. Rb7 {[%emt 0:00:28]} Bc5 {[%emt 0:00:00]} 45. Qc6 {[%emt 0:02:31]} Bd4 {[%emt 0:00:00]} 46. Kd3 {[%emt 0:02:23]} Bc5 {[%emt 0:00:00]} 47. Qc7 {[%emt 0:01:01]} Bd4 {[%emt 0:00:00]} 48. f4 {[%emt 0:00:45]} gxf4 {[%emt 0:00:04]} 49. gxf4 {[%emt 0:00:27]} Ke8 {[%emt 0:00:16]} 50. Ke4 {[%emt 0:00:38]} Bf5+ {[%emt 0:01:44]} 51. Kd5 {[%emt 0:00:32]} Rd7 {[%emt 0:00:41]} 52. Qc6 {[%emt 0:00:10]} Bh3 {[%emt 0:03:06]} 53. Qc8+ {[%emt 0:01:19]} Ke7 {[%emt 0:00:08]} 54. Rxd7+ {[%emt 0:00:07]} Bxd7 {[%emt 0:00:06]} 55. Qc7 {[%emt 0:00:02]} Ke8 {[%emt 0:02:03]} 56. Qxd6 {[%emt 0:00:23]} Bf5 {[%emt 0:00:30]} 57. fxe5 {[%emt 0:00:10]} 1-0

[Event "FIDE WCCC Open-12 2024"]
[Site "Montesilvano"]
[Date "2024.11.18"]
[Round "3.27"]
[White "Belin, Anton"]
[Black "Lee, Tsuen Jin Aiesec"]
[Result "1-0"]
[ECO "C07"]
[WhiteElo "2138"]
[BlackElo "1806"]
[PlyCount "100"]
[EventDate "2024.11.18"]
[EventType "swiss"]
[EventCountry "ITA"]
[TimeControl "5400+30"]

1. e4 {[%emt 0:00:06]} e6 {[%emt 0:00:08]} 2. d4 {[%emt 0:00:21]} d5 {[%emt 0:00:03]} 3. Nd2 {[%emt 0:00:28]} c5 {[%emt 0:00:04]} 4. exd5 {[%emt 0:00:32]} Qxd5 {[%emt 0:00:10]} 5. dxc5 {[%emt 0:00:29]} Nf6 {[%emt 0:00:06]} 6. Ngf3 {[%emt 0:01:35]} Qxc5 {[%emt 0:00:04]} 7. Bd3 {[%emt 0:02:16]} Qc7 {[%emt 0:00:18]} 8. O-O {[%emt 0:01:45]} Be7 {[%emt 0:01:21]} 9. Qe2 {[%emt 0:02:44]} Nc6 {[%emt 0:00:49]} 10. c3 {[%emt 0:01:34]} O-O {[%emt 0:01:13]} 11. Ne4 {[%emt 0:02:07]} h6 {[%emt 0:23:28]} 12. Nxf6+ {[%emt 0:00:52]} Bxf6 {[%emt 0:00:22]} 13. Qe4 {[%emt 0:00:29]} Rd8 {[%emt 0:00:03]} 14. Qh7+ {[%emt 0:01:23]} Kf8 {[%emt 0:00:03]} 15. Be3 {[%emt 0:08:10]} b6 {[%emt 0:02:02]} 16. Rad1 {[%emt 0:03:37]} e5 {[%emt 0:05:29]} 17. Bc4 {[%emt 0:06:15]} Bg4 {[%emt 0:17:55]} 18. Bd5 {[%emt 0:04:35]} Bh5 {[%emt 0:00:42]} 19. Be4 {[%emt 0:00:38]} Ke7 {[%emt 0:02:43]} 20. Rxd8 {[%emt 0:10:58]} Rxd8 {[%emt 0:00:12]} 21. Bc1 {[%emt 0:06:54]} Qb8 {[%emt 0:18:39]} 22. b3 {[%emt 0:02:34]} Qd6 {[%emt 0:04:32]} 23. Re1 {[%emt 0:01:49]} Na5 {[%emt 0:15:40]} 24. h3 {[%emt 0:01:13]} g5 {[%emt 0:01:37]} 25. Bxg5 {[%emt 0:04:55]} Bxg5 {[%emt 0:01:20]} 26. Nxg5 {[%emt 0:00:06]} Qd2 {[%emt 0:00:23]} 27. Re3 {[%emt 0:00:08]} Qd1+ {[%emt 0:00:10]} 28. Kh2 {[%emt 0:00:26]} hxg5 {[%emt 0:00:22]} 29. Bc2 {[%emt 0:07:23]} Qd2 {[%emt 0:02:11]} 30. Rxe5+ {[%emt 0:04:09]} Kd6 {[%emt 0:00:56]} 31. Re3 {[%emt 0:02:30]} Qxf2 {[%emt 0:00:57]} 32. Rd3+ {[%emt 0:01:46]} Kc7 {[%emt 0:00:46]} 33. Qxh5 {[%emt 0:00:26]} Rxd3 {[%emt 0:02:12]} 34. Bxd3 {[%emt 0:00:07]} Qf4+ {[%emt 0:00:00]} 35. Kg1 {[%emt 0:00:34]} Qe3+ {[%emt 0:00:00]} 36. Kh2 {[%emt 0:00:11]} Qxd3 {[%emt 0:00:00]} 37. Qxf7+ {[%emt 0:00:11]} Qd7 {[%emt 0:00:00]} 38. Qh5 {[%emt 0:00:27]} Qe7 {[%emt 0:00:14]} 39. Qg4 {[%emt 0:00:37]} Nc6 {[%emt 0:00:05]} 40. Qc4 {[%emt 0:01:36]} Kb7 {[%emt 0:00:33]} 41. b4 {[%emt 0:00:24]} Qd6+ {[%emt 0:00:37]} 42. Kh1 {[%emt 0:00:28]} Ne5 {[%emt 0:00:20]} 43. Qe4+ {[%emt 0:00:06]} Kb8 {[%emt 0:00:05]} 44. a4 {[%emt 0:01:18]} Qf6 {[%emt 0:02:02]} 45. Qe2 {[%emt 0:01:47]} Qh8 {[%emt 0:01:16]} 46. Qd2 {[%emt 0:01:22]} Qf6 {[%emt 0:00:35]} 47. Qe2 {[%emt 0:00:10]} Qf4 {[%emt 0:00:29]} 48. Qb5 {[%emt 0:01:31]} Qc1+ {[%emt 0:00:35]} 49. Kh2 {[%emt 0:00:09]} Qxc3 {[%emt 0:00:23]} 50. a5 {[%emt 0:00:39]} Qc2 {[%emt 0:01:16]} 1-0

[Event "FIDE WCCC Open-12 2024"]
[Site "Montesilvano"]
[Date "2024.11.18"]
[Round "3.28"]
[White "Liu, Richard Jingjie"]
[Black "Ivancic, Ivan"]
[Result "0-1"]
[ECO "B33"]
[WhiteElo "1795"]
[BlackElo "2091"]
[PlyCount "112"]
[EventDate "2024.11.18"]
[EventType "swiss"]
[EventCountry "ITA"]
[TimeControl "5400+30"]

1. e4 {[%emt 0:00:03]} c5 {[%emt 0:00:07]} 2. Nf3 {[%emt 0:00:02]} Nc6 {[%emt 0:00:07]} 3. d4 {[%emt 0:00:03]} cxd4 {[%emt 0:00:07]} 4. Nxd4 {[%emt 0:00:04]} Nf6 {[%emt 0:00:09]} 5. Nc3 {[%emt 0:00:03]} e5 {[%emt 0:00:19]} 6. Ndb5 {[%emt 0:00:04]} d6 {[%emt 0:00:24]} 7. Bg5 {[%emt 0:00:04]} a6 {[%emt 0:00:10]} 8. Na3 {[%emt 0:00:04]} b5 {[%emt 0:00:07]} 9. Nd5 {[%emt 0:00:04]} Be7 {[%emt 0:00:20]} 10. Bxf6 {[%emt 0:00:06]} Bxf6 {[%emt 0:00:07]} 11. c3 {[%emt 0:00:04]} Ne7 {[%emt 0:00:55]} 12. Nc2 {[%emt 0:12:24]} Nxd5 {[%emt 0:00:50]} 13. Qxd5 {[%emt 0:01:19]} Ra7 {[%emt 0:02:47]} 14. Ne3 {[%emt 0:00:16]} Bg5 {[%emt 0:03:35]} 15. Qd3 {[%emt 0:02:13]} Be6 {[%emt 0:19:51]} 16. Be2 {[%emt 0:01:05]} Qb6 {[%emt 0:09:45]} 17. Nf5 {[%emt 0:10:07]} Bxf5 {[%emt 0:01:48]} 18. exf5 {[%emt 0:00:27]} O-O {[%emt 0:06:09]} 19. O-O {[%emt 0:00:48]} Rd8 {[%emt 0:06:55]} 20. Qe4 {[%emt 0:05:37]} Qb7 {[%emt 0:08:49]} 21. Qxb7 {[%emt 0:00:48]} Rxb7 {[%emt 0:00:37]} 22. Rad1 {[%emt 0:00:46]} d5 {[%emt 0:01:23]} 23. g4 {[%emt 0:03:30]} g6 {[%emt 0:07:47]} 24. fxg6 {[%emt 0:00:53]} hxg6 {[%emt 0:00:27]} 25. f3 {[%emt 0:00:12]} Kg7 {[%emt 0:09:52]} 26. Bd3 {[%emt 0:01:30]} Kf6 {[%emt 0:02:42]} 27. Bc2 {[%emt 0:00:41]} Ke6 {[%emt 0:01:50]} 28. Rfe1 {[%emt 0:00:21]} f5 {[%emt 0:02:05]} 29. Bb3 {[%emt 0:02:13]} a5 {[%emt 0:02:46]} 30. a3 {[%emt 0:00:01]} Be7 {[%emt 0:02:56]} 31. Rd3 {[%emt 0:13:53]} Bc5+ {[%emt 0:00:45]} 32. Kg2 {[%emt 0:00:47]} b4 {[%emt 0:02:53]} 33. cxb4 {[%emt 0:00:36]} axb4 {[%emt 0:00:24]} 34. a4 {[%emt 0:00:08]} f4 {[%emt 0:01:39]} 35. Rc1 {[%emt 0:02:42]} Bd4 {[%emt 0:00:49]} 36. Rc6+ {[%emt 0:01:33]} Rd6 {[%emt 0:00:13]} 37. Rxd6+ {[%emt 0:00:02]} Kxd6 {[%emt 0:00:08]} 38. Rd2 {[%emt 0:00:03]} Rc7 {[%emt 0:00:48]} 39. h4 {[%emt 0:03:11]} Rc1 {[%emt 0:01:41]} 40. Rc2 {[%emt 0:00:46]} Rg1+ {[%emt 0:01:11]} 41. Kh2 {[%emt 0:00:00]} Rg3 {[%emt 0:00:35]} 42. a5 {[%emt 0:04:22]} Rxf3 {[%emt 0:00:19]} 43. Ba4 {[%emt 0:00:26]} Rf2+ {[%emt 0:01:14]} 44. Rxf2 {[%emt 0:00:01]} Bxf2 {[%emt 0:00:02]} 45. h5 {[%emt 0:00:15]} gxh5 {[%emt 0:00:21]} 46. gxh5 {[%emt 0:00:01]} e4 {[%emt 0:02:23]} 47. Kg2 {[%emt 0:00:32]} Bd4 {[%emt 0:00:23]} 48. b3 {[%emt 0:00:14]} f3+ {[%emt 0:00:53]} 49. Kf1 {[%emt 0:00:01]} e3 {[%emt 0:00:42]} 50. Bb5 {[%emt 0:00:55]} Kc5 {[%emt 0:00:28]} 51. Ba6 {[%emt 0:00:16]} e2+ {[%emt 0:00:17]} 52. Bxe2 {[%emt 0:00:01]} fxe2+ {[%emt 0:00:06]} 53. Kxe2 {[%emt 0:00:04]} Kb5 {[%emt 0:03:00]} 54. Kd3 {[%emt 0:00:49]} Be5 {[%emt 0:00:00]} 55. h6 {[%emt 0:00:22]} Kxa5 {[%emt 0:00:00]} 56. h7 {[%emt 0:00:09]} Kb6 {[%emt 0:00:00]} 0-1

[Event "FIDE WCCC Open-12 2024"]
[Site "Montesilvano"]
[Date "2024.11.18"]
[Round "3.29"]
[White "Obidov, Biloliddin"]
[Black "Zhang, Sean"]
[Result "1-0"]
[ECO "E09"]
[WhiteElo "2088"]
[BlackElo "1789"]
[PlyCount "69"]
[EventDate "2024.11.18"]
[EventType "swiss"]
[EventCountry "ITA"]
[TimeControl "5400+30"]

1. d4 {[%emt 0:00:02]} Nf6 {[%emt 0:00:05]} 2. Nf3 {[%emt 0:00:04]} d5 {[%emt 0:00:19]} 3. c4 {[%emt 0:00:05]} e6 {[%emt 0:00:21]} 4. g3 {[%emt 0:00:01]} Be7 {[%emt 0:00:40]} 5. Bg2 {[%emt 0:00:04]} O-O {[%emt 0:00:09]} 6. O-O {[%emt 0:00:06]} Nbd7 {[%emt 0:00:41]} 7. Qc2 {[%emt 0:01:18]} c6 {[%emt 0:00:20]} 8. Nbd2 {[%emt 0:00:46]} b6 {[%emt 0:04:12]} 9. e4 {[%emt 0:00:40]} dxe4 {[%emt 0:02:18]} 10. Nxe4 {[%emt 0:00:02]} Bb7 {[%emt 0:01:48]} 11. Ne5 {[%emt 0:10:44]} Nxe5 {[%emt 0:04:23]} 12. dxe5 {[%emt 0:00:03]} Nxe4 {[%emt 0:01:25]} 13. Bxe4 {[%emt 0:00:04]} h6 {[%emt 0:00:27]} 14. Qe2 {[%emt 0:19:07]} Re8 {[%emt 0:04:34]} 15. Qg4 {[%emt 0:26:04]} Bg5 {[%emt 0:03:07]} 16. Rd1 {[%emt 0:04:22]} Qe7 {[%emt 0:05:38]} 17. Bxg5 {[%emt 0:00:18]} hxg5 {[%emt 0:01:48]} 18. Qf3 {[%emt 0:04:44]} Rac8 {[%emt 0:02:10]} 19. Rd6 {[%emt 0:03:22]} Red8 {[%emt 0:03:14]} 20. Rad1 {[%emt 0:03:36]} f5 {[%emt 1:02:51]} 21. exf6 {[%emt 0:07:16]} gxf6 {[%emt 0:00:00]} 22. Rxd8+ {[%emt 0:04:34]} Rxd8 {[%emt 0:00:00]} 23. Rxd8+ {[%emt 0:00:31]} Qxd8 {[%emt 0:00:00]} 24. Bxc6 {[%emt 0:00:36]} Bxc6 {[%emt 0:00:00]} 25. Qxc6 {[%emt 0:00:02]} Qe7 {[%emt 0:00:00]} 26. a3 {[%emt 0:00:17]} Kf7 {[%emt 0:00:00]} 27. b4 {[%emt 0:00:20]} g4 {[%emt 0:00:00]} 28. c5 {[%emt 0:01:00]} bxc5 {[%emt 0:00:00]} 29. bxc5 {[%emt 0:00:01]} Kg6 {[%emt 0:00:00]} 30. Qd6 {[%emt 0:06:29]} Qxd6 {[%emt 0:00:00]} 31. cxd6 {[%emt 0:00:01]} Kf7 {[%emt 0:00:00]} 32. f3 {[%emt 0:00:59]} gxf3 {[%emt 0:00:00]} 33. h4 {[%emt 0:00:13]} e5 {[%emt 0:00:00]} 34. h5 {[%emt 0:00:11]} e4 {[%emt 0:00:00]} 35. Kf2 {[%emt 0:00:09]} 1-0

[Event "FIDE WCCC Open-12 2024"]
[Site "Montesilvano"]
[Date "2024.11.18"]
[Round "3.30"]
[White "Simiyu Jadon"]
[Black "Birmenko, Nikolay"]
[Result "0-1"]
[ECO "B33"]
[WhiteElo "1784"]
[BlackElo "2084"]
[PlyCount "66"]
[EventDate "2024.11.18"]
[EventType "swiss"]
[EventCountry "ITA"]
[TimeControl "5400+30"]

1. e4 {[%emt 0:00:06]} c5 {[%emt 0:00:11]} 2. Nf3 {[%emt 0:00:07]} Nc6 {[%emt 0:00:06]} 3. d4 {[%emt 0:00:07]} cxd4 {[%emt 0:00:05]} 4. Nxd4 {[%emt 0:00:08]} Nf6 {[%emt 0:00:05]} 5. Nc3 {[%emt 0:00:10]} e5 {[%emt 0:00:05]} 6. Ndb5 {[%emt 0:00:06]} d6 {[%emt 0:00:05]} 7. Bg5 {[%emt 0:00:08]} a6 {[%emt 0:00:07]} 8. Na3 {[%emt 0:00:05]} b5 {[%emt 0:00:33]} 9. Nd5 {[%emt 0:00:07]} Be7 {[%emt 0:00:06]} 10. Bxf6 {[%emt 0:00:09]} Bxf6 {[%emt 0:00:05]} 11. c3 {[%emt 0:00:11]} Rb8 {[%emt 0:00:16]} 12. Nc2 {[%emt 0:00:10]} Bg5 {[%emt 0:00:17]} 13. Be2 {[%emt 0:01:07]} O-O {[%emt 0:03:59]} 14. O-O {[%emt 0:01:27]} Kh8 {[%emt 0:10:03]} 15. Ncb4 {[%emt 0:04:54]} Nxb4 {[%emt 0:06:15]} 16. Nxb4 {[%emt 0:00:12]} Bb7 {[%emt 0:03:14]} 17. Qd3 {[%emt 0:03:51]} a5 {[%emt 0:07:03]} 18. Nc2 {[%emt 0:00:08]} d5 {[%emt 0:01:39]} 19. Rfd1 {[%emt 0:08:57]} dxe4 {[%emt 0:07:22]} 20. Qxb5 {[%emt 0:02:07]} Qc7 {[%emt 0:01:57]} 21. Qc4 {[%emt 0:12:08]} Qb6 {[%emt 0:04:58]} 22. b4 {[%emt 0:06:43]} Qg6 {[%emt 0:04:52]} 23. Qb3 {[%emt 0:14:37]} f5 {[%emt 0:01:26]} 24. Rab1 {[%emt 0:11:57]} a4 {[%emt 0:05:58]} 25. Qxa4 {[%emt 0:04:07]} f4 {[%emt 0:00:21]} 26. Bc4 {[%emt 0:06:01]} e3 {[%emt 0:02:55]} 27. fxe3 {[%emt 0:01:46]} f3 {[%emt 0:02:36]} 28. Bd3 {[%emt 0:02:31]} Qh6 {[%emt 0:02:19]} 29. Qa7 {[%emt 0:05:24]} Qc6 {[%emt 0:08:27]} 30. e4 {[%emt 0:01:52]} Bd8 {[%emt 0:00:16]} 31. Qa3 {[%emt 0:01:40]} Bb6+ {[%emt 0:00:42]} 32. Kh1 {[%emt 0:00:26]} fxg2+ {[%emt 0:00:08]} 33. Kxg2 {[%emt 0:00:06]} Qg6+ {[%emt 0:00:40]} 0-1